[Event "28th CRO-chT 1A-Men 2019"]
[Site "Mali Losinj"]
[Date "2019.10.06"]
[Round "9.6"]
[White "Medak, Bojan"]
[Black "Muse, Mladen"]
[Result "1/2-1/2"]
[ECO "A14"]
[WhiteElo "2351"]
[BlackElo "2387"]
[Annotator "ChessBase"]
[PlyCount "27"]
[EventDate "2019.09.28"]
[EventType "team-tourn"]
[EventCountry "CRO"]
[SourceTitle "playchess.com"]
[Source "ChessBase"]
[SourceQuality "1"]
[TimeControl "40/5400+30:1800+30"]

1. Nf3 {[%emt 0:00:30]} d5 {[%emt 0:00:30]} 2. c4 {[%emt 0:00:30]} e6 {[%emt 0:00:30]} 3. g3 {[%emt 0:00:30]} Nf6 {[%emt 0:00:30]} 4. Bg2 {[%emt 0:00:30]} Be7 {[%emt 0:00:30]} 5. O-O {[%emt 0:01:30]} O-O {[%emt 0:00:30]} 6. b3 {[%emt 0:00:30]} b6 {[%emt 0:00:30]} 7. Bb2 {[%emt 0:00:30]} Bb7 {[%emt 0:01:30]} 8. e3 {[%emt 0:01:30]} c5 {[%emt 0:01:30]} 9. Qe2 {[%emt 0:01:30]} Nc6 {[%emt 0:01:30]} 10. d3 {[%emt 0:02:30]} Qc7 {[%emt 0:02:30]} 11. Nbd2 {[%emt 0:03:30]} Rad8 {[%emt 0:01:30]} 12. a3 {[%emt 0:02:30]} Rd7 {[%emt 0:01:30]} 13. Rac1 {[%emt 0:00:30]} Qb8 {[%emt 0:01:30]} 14. d4 {[%emt 0:03:30]} 1/2-1/2

[Event "28th CRO-chT 1A-Men 2019"]
[Site "Mali Losinj"]
[Date "2019.10.06"]
[Round "9.7"]
[White "Saric, Ibro"]
[Black "Grachev, Boris"]
[Result "1/2-1/2"]
[ECO "D14"]
[WhiteElo "2564"]
[BlackElo "2621"]
[Annotator "ChessBase"]
[PlyCount "22"]
[EventDate "2019.09.28"]
[EventType "team-tourn"]
[EventCountry "CRO"]
[SourceTitle "playchess.com"]
[Source "ChessBase"]
[SourceQuality "1"]
[TimeControl "40/5400+30:1800+30"]

1. c4 {[%emt 0:00:30]} c6 {[%emt 0:00:30]} 2. d4 {[%emt 0:00:00]} d5 {[%emt 0:00:00]} 3. cxd5 {[%emt 0:00:00]} cxd5 {[%emt 0:00:00]} 4. Nc3 {[%emt 0:00:00]} Nf6 {[%emt 0:00:00]} 5. Nf3 {[%emt 0:00:00]} Nc6 {[%emt 0:00:00]} 6. Bf4 {[%emt 0:00:30]} Bf5 {[%emt 0:00:00]} 7. e3 {[%emt 0:00:00]} e6 {[%emt 0:00:00]} 8. Bd3 {[%emt 0:00:00]} Bxd3 {[%emt 0:00:00]} 9. Qxd3 {[%emt 0:00:00]} Bd6 {[%emt 0:00:00]} 10. Bxd6 {[%emt 0:00:00]} Qxd6 {[%emt 0:00:00]} 11. O-O {[%emt 0:00:30]} O-O {[%emt 0:00:00]} 1/2-1/2

[Event "28th CRO-chT 1A-Men 2019"]
[Site "Mali Losinj"]
[Date "2019.10.06"]
[Round "9.8"]
[White "Bosiocic, Marin"]
[Black "Saric, Ante"]
[Result "1/2-1/2"]
[ECO "B97"]
[WhiteElo "2619"]
[BlackElo "2557"]
[Annotator "ChessBase"]
[PlyCount "25"]
[EventDate "2019.09.28"]
[EventType "team-tourn"]
[EventCountry "CRO"]
[SourceTitle "playchess.com"]
[Source "ChessBase"]
[SourceQuality "1"]
[TimeControl "40/5400+30:1800+30"]

1. e4 {[%emt 0:00:30]} c5 {[%emt 0:00:30]} 2. Nf3 {[%emt 0:00:00]} d6 {[%emt 0:00:00]} 3. d4 {[%emt 0:00:00]} cxd4 {[%emt 0:00:00]} 4. Nxd4 {[%emt 0:00:00]} Nf6 {[%emt 0:00:00]} 5. Nc3 {[%emt 0:00:00]} a6 {[%emt 0:00:00]} 6. Bg5 {[%emt 0:00:00]} e6 {[%emt 0:00:30]} 7. f4 {[%emt 0:00:00]} Qb6 {[%emt 0:00:00]} 8. Qd2 {[%emt 0:00:00]} Qxb2 {[%emt 0:00:00]} 9. Rb1 {[%emt 0:00:00]} Qa3 {[%emt 0:00:00]} 10. Bxf6 {[%emt 0:00:30]} gxf6 {[%emt 0:00:00]} 11. Be2 {[%emt 0:00:00]} Nc6 {[%emt 0:00:00]} 12. Nxc6 {[%emt 0:00:00]} bxc6 {[%emt 0:00:00]} 13. O-O {[%emt 0:00:00]} 1/2-1/2

[Event "28th CRO-chT 1A-Men 2019"]
[Site "Mali Losinj"]
[Date "2019.10.06"]
[Round "9.9"]
[White "Galyas, Miklos"]
[Black "Popov, Ivan"]
[Result "1/2-1/2"]
[ECO "B18"]
[WhiteElo "2476"]
[BlackElo "2611"]
[Annotator "ChessBase"]
[PlyCount "21"]
[EventDate "2019.09.28"]
[EventType "team-tourn"]
[EventCountry "CRO"]
[SourceTitle "playchess.com"]
[Source "ChessBase"]
[SourceQuality "1"]
[TimeControl "40/5400+30:1800+30"]

1. e4 {[%emt 0:00:30]} c6 {[%emt 0:00:30]} 2. d4 {[%emt 0:00:00]} d5 {[%emt 0:00:00]} 3. Nc3 {[%emt 0:00:00]} dxe4 {[%emt 0:00:00]} 4. Nxe4 {[%emt 0:00:00]} Bf5 {[%emt 0:00:00]} 5. Ng3 {[%emt 0:00:00]} Bg6 {[%emt 0:00:00]} 6. Nf3 {[%emt 0:00:30]} e6 {[%emt 0:00:00]} 7. Bd3 {[%emt 0:00:00]} Nf6 {[%emt 0:00:00]} 8. O-O {[%emt 0:00:00]} Nbd7 {[%emt 0:00:30]} 9. c3 {[%emt 0:00:00]} Bxd3 {[%emt 0:00:00]} 10. Qxd3 {[%emt 0:00:00]} Be7 {[%emt 0:00:00]} 11. Re1 {[%emt 0:01:30]} 1/2-1/2

[Event "28th CRO-chT 1A-Men 2019"]
[Site "Mali Losinj"]
[Date "2019.10.06"]
[Round "9.10"]
[White "Tica, Sven"]
[Black "Plenca, Julijan"]
[Result "1/2-1/2"]
[ECO "B19"]
[WhiteElo "2418"]
[BlackElo "2423"]
[Annotator "ChessBase"]
[PlyCount "24"]
[EventDate "2019.09.28"]
[EventType "team-tourn"]
[EventCountry "CRO"]
[SourceTitle "playchess.com"]
[Source "ChessBase"]
[SourceQuality "1"]
[TimeControl "40/5400+30:1800+30"]

1. e4 {[%emt 0:00:30]} c6 {[%emt 0:00:30]} 2. d4 {[%emt 0:00:00]} d5 {[%emt 0:00:00]} 3. Nc3 {[%emt 0:00:00]} dxe4 {[%emt 0:00:00]} 4. Nxe4 {[%emt 0:00:00]} Bf5 {[%emt 0:00:00]} 5. Ng3 {[%emt 0:00:00]} Bg6 {[%emt 0:00:00]} 6. h4 {[%emt 0:00:30]} h6 {[%emt 0:00:30]} 7. Nf3 {[%emt 0:00:00]} Nd7 {[%emt 0:00:00]} 8. h5 {[%emt 0:00:00]} Bh7 {[%emt 0:00:00]} 9. Bd3 {[%emt 0:00:00]} Bxd3 {[%emt 0:00:00]} 10. Qxd3 {[%emt 0:00:00]} Ngf6 {[%emt 0:00:00]} 11. Bf4 {[%emt 0:00:00]} Qa5+ {[%emt 0:00:00]} 12. Bd2 {[%emt 0:00:00]} Qc7 {[%emt 0:01:00]} 1/2-1/2

[Event "28th CRO-chT 1A-Men 2019"]
[Site "Mali Losinj"]
[Date "2019.10.06"]
[Round "9.11"]
[White "Bobanac, Miro"]
[Black "Golubovic, Boris"]
[Result "1/2-1/2"]
[ECO "A30"]
[WhiteElo "2257"]
[BlackElo "2401"]
[Annotator "ChessBase"]
[PlyCount "20"]
[EventDate "2019.09.28"]
[EventType "team-tourn"]
[EventCountry "CRO"]
[SourceTitle "playchess.com"]
[Source "ChessBase"]
[SourceQuality "1"]
[TimeControl "40/5400+30:1800+30"]

1. Nf3 {[%emt 0:00:30]} Nf6 {[%emt 0:00:30]} 2. g3 {[%emt 0:00:30]} b6 {[%emt 0:00:30]} 3. Bg2 {[%emt 0:00:30]} Bb7 {[%emt 0:00:30]} 4. O-O {[%emt 0:00:30]} e6 {[%emt 0:00:30]} 5. c4 {[%emt 0:00:30]} Be7 {[%emt 0:00:30]} 6. Nc3 {[%emt 0:00:30]} c5 {[%emt 0:00:30]} 7. d3 {[%emt 0:01:30]} O-O {[%emt 0:00:30]} 8. Bd2 {[%emt 0:00:30]} d5 {[%emt 0:00:30]} 9. Ne5 {[%emt 0:01:30]} Nbd7 {[%emt 0:00:30]} 10. Nxd7 {[%emt 0:00:30]} Qxd7 {[%emt 0:00:30]} 1/2-1/2

[Event "28th CRO-chT 1A-Men 2019"]
[Site "Mali Losinj"]
[Date "2019.10.06"]
[Round "9.13"]
[White "Kryvoruchko, Yuriy"]
[Black "Indjic, Aleksandar"]
[Result "1/2-1/2"]
[ECO "B51"]
[WhiteElo "2669"]
[BlackElo "2638"]
[Annotator "RC"]
[PlyCount "106"]
[EventDate "2019.09.28"]
[EventType "team-tourn"]
[EventCountry "CRO"]
[SourceTitle "playchess.com"]
[Source "ChessBase"]
[SourceQuality "1"]
[TimeControl "40/5400+30:1800+30"]

1. e4 {[%emt 0:00:30]} c5 {[%emt 0:01:30]} 2. Nf3 {[%emt 0:00:00]} d6 {[%emt 0:00:30]} 3. Bb5+ {[%emt 0:00:00]} Nd7 {[%emt 0:01:30]} 4. Ba4 {[%emt 0:00:00]} Ngf6 {[%emt 0:01:30]} 5. O-O {[%emt 0:00:00]} a6 {[%emt 0:01:30]} 6. c4 {[%emt 0:00:30]} e5 {[%emt 0:00:30]} 7. Nc3 {[%emt 0:00:30]} Be7 {[%emt 0:01:30]} 8. a3 {[%emt 0:00:30]} O-O {[%emt 0:01:30]} 9. d3 {[%emt 0:00:00]} Nb6 {[%emt 0:02:30]} 10. Bc2 {[%emt 0:04:00]} a5 {[%emt 0:01:30]} 11. h3 {[%emt 0:12:30]} Bd7 {[%emt 0:00:30]} 12. b3 {[%emt 0:04:30]} Ne8 {[%emt 0:03:30]} 13. Rb1 {[%emt 0:02:30]} f5 {[%emt 0:01:30]} 14. b4 {[%emt 0:04:30]} axb4 {[%emt 0:03:30]} 15. axb4 {[%emt 0:00:30]} cxb4 {[%emt 0:00:30]} 16. Rxb4 {[%emt 0:02:30]} fxe4 {[%emt 0:00:00]} 17. dxe4 {[%emt 0:02:30]} Bc6 {[%emt 0:00:00]} 18. Be3 {[%emt 0:11:30]} Nd7 {[%emt 0:00:30]} 19. Nd5 {[%emt 0:04:30]} Nc7 {[%emt 0:02:30]} 20. Qd2 {[%emt 0:08:30]} Na6 {[%emt 0:04:30]} 21. Rb2 {[%emt 0:01:30]} Nac5 {[%emt 0:01:30]} 22. Rd1 {[%emt 0:00:30]} Bxd5 {[%emt 0:00:30]} 23. Qxd5+ {[%emt 0:06:30]} Kh8 {[%emt 0:00:00]} 24. Qd2 {[%emt 0:00:30]} Qe8 {[%emt 0:02:00]} 25. Nh2 {[%emt 0:04:30]} Ra3 {[%emt 0:00:30]} 26. Nf1 {[%emt 0:02:30]} Qf7 {[%emt 0:04:30]} 27. Qe2 {[%emt 0:02:30]} Rfa8 {[%emt 0:01:30]} 28. Rdb1 {[%emt 0:04:30]} Bd8 {[%emt 0:09:30]} 29. Bc1 {[%emt 0:00:30]} Nf8 {[%emt 0:01:30]} 30. Be3 {[%emt 0:04:29]} Nfe6 {[%emt 0:00:30]} 31. Bxc5 {[%emt 0:00:07]} Nxc5 {[%emt 0:00:00]} 32. Ne3 {[%emt 0:00:09]} g6 {[%emt 0:03:00]} 33. Rd1 {[%emt 0:02:54]} R8a6 {[%emt 0:05:30]} 34. Nd5 {[%emt 0:01:55]} Ra8 {[%emt 0:13:30]} 35. Bb1 {[%emt 0:01:03]} Ne6 {[%emt 0:04:30]} 36. Ra2 {[%emt 0:00:13]} Rxa2 {[%emt 0:04:30]} 37. Bxa2 {[%emt 0:00:03]} Nc5 {[%emt 0:00:30]} 38. Bb1 {[%emt 0:00:36]} Kg8 {[%emt 0:01:30]} 39. Rf1 {[%emt 0:01:27]} Bg5 {[%emt 0:04:01]} 40. Bc2 {[%emt 0:00:00]} Rf8 {[%emt 0:00:00]} 41. Qg4 {[%emt 0:10:04]} Bd2 {[%emt 0:05:29]} 42. g3 {[%emt 0:07:30]} Ne6 {[%emt 0:03:30]} 43. f4 {[%emt 0:01:30]} exf4 {[%emt 0:01:30]} 44. Qd1 {[%emt 0:00:30]} Ba5 {[%emt 0:00:30]} 45. gxf4 {[%emt 0:00:30]} Nc7 {[%emt 0:00:00]} 46. Bb3 {[%emt 0:01:30]} Nxd5 {[%emt 0:07:00]} 47. c5 {[%emt 0:02:30]} Kg7 {[%emt 0:00:30]} 48. Bxd5 {[%emt 0:00:30]} Qf6 {[%emt 0:00:00]} 49. cxd6 {[%emt 0:04:42]} Bb6+ {[%emt 0:00:00]} 50. Kg2 {[%emt 0:04:00]} Qxd6 {[%emt 0:00:30]} 51. Qa1+ {[%emt 0:02:41]} Kh6 {[%emt 0:00:30]} 52. Qe5 {[%emt 0:02:21]} Qxe5 {[%emt 0:00:30]} 53. fxe5 {[%emt 0:00:04]} Rxf1 {[%emt 0:00:30]} 1/2-1/2

[Event "28th CRO-chT 1A-Men 2019"]
[Site "Mali Losinj"]
[Date "2019.10.06"]
[Round "9.15"]
[White "Stevic, Hrvoje"]
[Black "Biti, Ozren"]
[Result "1/2-1/2"]
[ECO "D79"]
[WhiteElo "2570"]
[BlackElo "2366"]
[Annotator "ChessBase"]
[PlyCount "21"]
[EventDate "2019.09.28"]
[EventType "team-tourn"]
[EventCountry "CRO"]
[SourceTitle "playchess.com"]
[Source "ChessBase"]
[SourceQuality "1"]
[TimeControl "40/5400+30:1800+30"]

1. g3 {[%emt 0:00:30]} Nf6 {[%emt 0:00:30]} 2. Bg2 {[%emt 0:00:00]} d5 {[%emt 0:00:00]} 3. Nf3 {[%emt 0:00:00]} c6 {[%emt 0:00:00]} 4. O-O {[%emt 0:00:00]} g6 {[%emt 0:00:30]} 5. d4 {[%emt 0:00:00]} Bg7 {[%emt 0:00:00]} 6. c4 {[%emt 0:00:00]} O-O {[%emt 0:00:00]} 7. cxd5 {[%emt 0:00:00]} cxd5 {[%emt 0:00:00]} 8. Ne5 {[%emt 0:00:30]} Nbd7 {[%emt 0:00:00]} 9. Nc3 {[%emt 0:00:00]} e6 {[%emt 0:00:30]} 10. Nxd7 {[%emt 0:00:00]} Bxd7 {[%emt 0:00:30]} 11. Bf4 {[%emt 0:00:00]} 1/2-1/2

[Event "28th CRO-chT 1A-Men 2019"]
[Site "Mali Losinj"]
[Date "2019.10.06"]
[Round "9.16"]
[White "Ascic, Pero"]
[Black "Kozul, Zdenko"]
[Result "0-1"]
[ECO "D02"]
[WhiteElo "2318"]
[BlackElo "2581"]
[Annotator "ChessBase"]
[PlyCount "82"]
[EventDate "2019.09.28"]
[EventType "team-tourn"]
[EventCountry "CRO"]
[SourceTitle "playchess.com"]
[Source "ChessBase"]
[SourceQuality "1"]
[TimeControl "40/5400+30:1800+30"]

1. d4 {[%emt 0:00:30]} Nf6 {[%emt 0:01:30]} 2. c3 {[%emt 0:00:00]} d5 {[%emt 0:06:30]} 3. Nf3 {[%emt 0:00:00]} Bf5 {[%emt 0:00:30]} 4. Bf4 {[%emt 0:04:30]} e6 {[%emt 0:00:30]} 5. e3 {[%emt 0:00:30]} Be7 {[%emt 0:01:30]} 6. Be2 {[%emt 0:01:30]} O-O {[%emt 0:00:30]} 7. O-O {[%emt 0:00:30]} c5 {[%emt 0:01:30]} 8. Nbd2 {[%emt 0:00:30]} h6 {[%emt 0:04:30]} 9. h3 {[%emt 0:00:30]} Nc6 {[%emt 0:04:30]} 10. Ne5 {[%emt 0:01:30]} Nxe5 {[%emt 0:01:30]} 11. Bxe5 {[%emt 0:00:00]} Qb6 {[%emt 0:00:30]} 12. Qb3 {[%emt 0:05:00]} c4 {[%emt 0:03:30]} 13. Qxb6 {[%emt 0:00:30]} axb6 {[%emt 0:00:30]} 14. Bxf6 {[%emt 0:19:30]} Bxf6 {[%emt 0:00:30]} 15. g4 {[%emt 0:05:30]} Bh7 {[%emt 0:03:30]} 16. f4 {[%emt 0:00:30]} Be7 {[%emt 0:04:30]} 17. Nf3 {[%emt 0:03:30]} g5 {[%emt 0:01:30]} 18. a3 {[%emt 0:03:30]} Kg7 {[%emt 0:14:30]} 19. Rf2 {[%emt 0:11:30]} b5 {[%emt 0:05:30]} 20. Rc1 {[%emt 0:00:30]} f6 {[%emt 0:01:30]} 21. Bd1 {[%emt 0:06:30]} Bd6 {[%emt 0:00:30]} 22. Ne1 {[%emt 0:02:30]} gxf4 {[%emt 0:02:30]} 23. exf4 {[%emt 0:00:00]} e5 {[%emt 0:00:00]} 24. f5 {[%emt 0:22:36]} exd4 {[%emt 0:02:00]} 25. cxd4 {[%emt 0:00:05]} b4 {[%emt 0:13:30]} 26. axb4 {[%emt 0:00:30]} Bxb4 {[%emt 0:00:30]} 27. Nc2 {[%emt 0:00:20]} Bd6 {[%emt 0:00:30]} 28. Bf3 {[%emt 0:00:49]} Bg8 {[%emt 0:00:00]} 29. Re2 {[%emt 0:00:30]} Ra5 {[%emt 0:02:00]} 30. Kf2 {[%emt 0:03:03]} Rfa8 {[%emt 0:03:30]} 31. Ne3 {[%emt 0:01:28]} Bf7 {[%emt 0:00:30]} 32. h4 {[%emt 0:00:48]} Re8 {[%emt 0:01:30]} 33. Rg1 {[%emt 0:01:10]} Bf4 {[%emt 0:01:57]} 34. Nd1 {[%emt 0:04:36]} Rxe2+ {[%emt 0:00:44]} 35. Kxe2 {[%emt 0:01:03]} Ra2 {[%emt 0:00:53]} 36. Ke1 {[%emt 0:00:13]} b5 {[%emt 0:00:26]} 37. Rg2 {[%emt 0:00:07]} b4 {[%emt 0:00:14]} 38. h5 {[%emt 0:00:56]} Ra1 {[%emt 0:01:27]} 39. Rc2 {[%emt 0:00:24]} Rb1 {[%emt 0:00:32]} 40. Re2 {[%emt 0:00:00]} Kf8 {[%emt 0:00:00]} 41. Rc2 {[%emt 0:03:52]} Be8 {[%emt 0:06:17]} 0-1

[Event "28th CRO-chT 1A-Men 2019"]
[Site "Mali Losinj"]
[Date "2019.10.06"]
[Round "9.17"]
[White "Zelcic, Robert"]
[Black "Filipovic, Marko"]
[Result "1-0"]
[ECO "B53"]
[WhiteElo "2508"]
[BlackElo "2349"]
[Annotator "ChessBase"]
[PlyCount "123"]
[EventDate "2019.09.28"]
[EventType "team-tourn"]
[EventCountry "CRO"]
[SourceTitle "playchess.com"]
[Source "ChessBase"]
[SourceQuality "1"]
[TimeControl "40/5400+30:1800+30"]

1. e4 {[%emt 0:00:30]} c5 {[%emt 0:00:30]} 2. Nf3 {[%emt 0:00:00]} d6 {[%emt 0:00:00]} 3. d4 {[%emt 0:00:00]} cxd4 {[%emt 0:00:00]} 4. Qxd4 {[%emt 0:00:00]} a6 {[%emt 0:00:30]} 5. h3 {[%emt 0:00:00]} Nc6 {[%emt 0:00:30]} 6. Qe3 {[%emt 0:00:00]} g6 {[%emt 0:03:30]} 7. Be2 {[%emt 0:09:00]} Bg7 {[%emt 0:02:30]} 8. O-O {[%emt 0:00:30]} Nf6 {[%emt 0:08:30]} 9. c4 {[%emt 0:00:00]} O-O {[%emt 0:00:30]} 10. Nc3 {[%emt 0:00:00]} Nd7 {[%emt 0:04:30]} 11. b3 {[%emt 0:00:30]} Qa5 {[%emt 0:02:30]} 12. Bb2 {[%emt 0:00:30]} Rb8 {[%emt 0:05:30]} 13. Rab1 {[%emt 0:16:30]} Nde5 {[%emt 0:14:30]} 14. Rfd1 {[%emt 0:05:30]} Nxf3+ {[%emt 0:16:30]} 15. Bxf3 {[%emt 0:00:30]} Be6 {[%emt 0:00:30]} 16. Be2 {[%emt 0:01:30]} Qc5 {[%emt 0:05:30]} 17. Qd2 {[%emt 0:07:30]} f5 {[%emt 0:07:30]} 18. Na4 {[%emt 0:01:30]} Qb4 {[%emt 0:05:30]} 19. Bxg7 {[%emt 0:01:30]} Kxg7 {[%emt 0:03:28]} 20. Qb2+ {[%emt 0:05:30]} Kg8 {[%emt 0:00:32]} 21. exf5 {[%emt 0:00:00]} Bxf5 {[%emt 0:01:15]} 22. Rbc1 {[%emt 0:00:00]} e5 {[%emt 0:05:55]} 23. Bf3 {[%emt 0:06:30]} Nd4 {[%emt 0:04:55]} 24. Bd5+ {[%emt 0:00:00]} Kg7 {[%emt 0:01:15]} 25. Rxd4 {[%emt 0:00:00]} b5 {[%emt 0:01:06]} 26. a3 {[%emt 0:00:30]} Qa5 {[%emt 0:00:12]} 27. cxb5 {[%emt 0:01:30]} axb5 {[%emt 0:01:38]} 28. b4 {[%emt 0:07:30]} Qd8 {[%emt 0:01:28]} 29. Rd2 {[%emt 0:04:30]} bxa4 {[%emt 0:00:09]} 30. f4 {[%emt 0:00:30]} Qb6+ {[%emt 0:00:51]} 31. Kh2 {[%emt 0:00:30]} Qe3 {[%emt 0:00:50]} 32. Rf1 {[%emt 0:01:30]} Rbc8 {[%emt 0:00:38]} 33. Rf3 {[%emt 0:02:30]} Qe1 {[%emt 0:00:27]} 34. Re2 {[%emt 0:00:00]} Qd1 {[%emt 0:00:25]} 35. Rd2 {[%emt 0:04:00]} Rc2 {[%emt 0:01:09]} 36. Qxc2 {[%emt 0:01:30]} Bxc2 {[%emt 0:00:28]} 37. Rxd1 {[%emt 0:00:00]} Bxd1 {[%emt 0:00:04]} 38. Rd3 {[%emt 0:00:00]} Bc2 {[%emt 0:01:18]} 39. Rc3 {[%emt 0:00:30]} Bd1 {[%emt 0:00:57]} 40. Rc1 {[%emt 0:00:00]} Be2 {[%emt 0:00:00]} 41. Re1 {[%emt 0:03:00]} Bb5 {[%emt 0:06:30]} 42. fxe5 {[%emt 0:00:30]} Rf5 {[%emt 0:00:30]} 43. g4 {[%emt 0:01:30]} Rxe5 {[%emt 0:05:30]} 44. Rxe5 {[%emt 0:00:30]} dxe5 {[%emt 0:00:30]} 45. g5 {[%emt 0:00:00]} h6 {[%emt 0:00:30]} 46. h4 {[%emt 0:00:00]} hxg5 {[%emt 0:00:30]} 47. hxg5 {[%emt 0:00:00]} Kf8 {[%emt 0:00:30]} 48. Kg3 {[%emt 0:02:00]} Ke7 {[%emt 0:02:12]} 49. Kf3 {[%emt 0:00:30]} Be8 {[%emt 0:02:28]} 50. Ke3 {[%emt 0:00:30]} Kd6 {[%emt 0:00:07]} 51. Bg8 {[%emt 0:00:30]} Bd7 {[%emt 0:01:18]} 52. Bf7 {[%emt 0:00:00]} Bf5 {[%emt 0:03:34]} 53. Be8 {[%emt 0:00:00]} Bc2 {[%emt 0:00:23]} 54. Kd2 {[%emt 0:00:30]} Ke7 {[%emt 0:05:03]} 55. Kxc2 {[%emt 0:00:30]} Kxe8 {[%emt 0:00:04]} 56. Kd3 {[%emt 0:00:30]} Kd7 {[%emt 0:00:25]} 57. Ke4 {[%emt 0:00:00]} Kd6 {[%emt 0:01:02]} 58. b5 {[%emt 0:00:00]} Kc5 {[%emt 0:00:15]} 59. Kxe5 {[%emt 0:00:30]} Kxb5 {[%emt 0:00:09]} 60. Kd5 {[%emt 0:00:30]} Kb6 {[%emt 0:00:56]} 61. Kc4 {[%emt 0:00:30]} Kc6 {[%emt 0:01:06]} 62. Kb4 {[%emt 0:00:00]} 1-0

[Event "28th CRO-chT 1A-Men 2019"]
[Site "Mali Losinj"]
[Date "2019.10.06"]
[Round "9.18"]
[White "Drmic, Tomislav"]
[Black "Jankovic, Alojzije"]
[Result "0-1"]
[ECO "D00"]
[WhiteElo "2224"]
[BlackElo "2535"]
[Annotator "ChessBase"]
[PlyCount "88"]
[EventDate "2019.09.28"]
[EventType "team-tourn"]
[EventCountry "CRO"]
[SourceTitle "playchess.com"]
[Source "ChessBase"]
[SourceQuality "1"]
[TimeControl "40/5400+30:1800+30"]

1. d4 {[%emt 0:00:30]} Nf6 {[%emt 0:00:30]} 2. Nc3 {[%emt 0:00:30]} d5 {[%emt 0:00:30]} 3. Bf4 {[%emt 0:00:00]} g6 {[%emt 0:00:30]} 4. h4 {[%emt 0:01:00]} h5 {[%emt 0:02:30]} 5. e3 {[%emt 0:03:30]} Bg7 {[%emt 0:00:30]} 6. Nf3 {[%emt 0:00:00]} Bg4 {[%emt 0:00:30]} 7. Qd2 {[%emt 0:00:00]} Bxf3 {[%emt 0:01:30]} 8. gxf3 {[%emt 0:00:30]} c6 {[%emt 0:00:30]} 9. O-O-O {[%emt 0:00:00]} b5 {[%emt 0:06:30]} 10. Kb1 {[%emt 0:01:00]} Nbd7 {[%emt 0:00:30]} 11. Bd3 {[%emt 0:02:30]} b4 {[%emt 0:10:30]} 12. Ne2 {[%emt 0:00:30]} Qb6 {[%emt 0:00:30]} 13. e4 {[%emt 0:06:30]} dxe4 {[%emt 0:02:30]} 14. fxe4 {[%emt 0:01:30]} Ng4 {[%emt 0:00:30]} 15. Be3 {[%emt 0:20:30]} Nxe3 {[%emt 0:09:30]} 16. fxe3 {[%emt 0:07:30]} e5 {[%emt 0:02:30]} 17. Bc4 {[%emt 0:01:30]} O-O {[%emt 0:00:30]} 18. Rhg1 {[%emt 0:01:30]} Kh7 {[%emt 0:04:30]} 19. Ng3 {[%emt 0:00:30]} Nf6 {[%emt 0:01:30]} 20. Qe2 {[%emt 0:14:30]} Rad8 {[%emt 0:08:30]} 21. Rdf1 {[%emt 0:01:30]} exd4 {[%emt 0:04:30]} 22. e5 {[%emt 0:00:30]} Ng4 {[%emt 0:00:30]} 23. Bxf7 {[%emt 0:02:30]} dxe3 {[%emt 0:09:30]} 24. Nxh5 {[%emt 0:04:30]} gxh5 {[%emt 0:14:01]} 25. Rxg4 {[%emt 0:03:30]} Qb5 {[%emt 0:05:00]} 26. Bg6+ {[%emt 0:21:56]} Kh8 {[%emt 0:10:09]} 27. Qxb5 {[%emt 0:02:19]} cxb5 {[%emt 0:00:29]} 28. Rxf8+ {[%emt 0:01:26]} Rxf8 {[%emt 0:02:45]} 29. Rg1 {[%emt 0:00:05]} Rf2 {[%emt 0:01:17]} 30. Bd3 {[%emt 0:00:28]} Bxe5 {[%emt 0:00:09]} 31. a3 {[%emt 0:01:33]} bxa3 {[%emt 0:01:01]} 32. bxa3 {[%emt 0:00:01]} Bc3 {[%emt 0:00:00]} 33. Rg5 {[%emt 0:00:51]} e2 {[%emt 0:00:39]} 34. Rxh5+ {[%emt 0:00:09]} Kg7 {[%emt 0:00:17]} 35. Bxe2 {[%emt 0:00:08]} Rxe2 {[%emt 0:00:00]} 36. Rxb5 {[%emt 0:00:10]} a5 {[%emt 0:01:20]} 37. Rc5 {[%emt 0:00:41]} Re3 {[%emt 0:00:27]} 38. Ka2 {[%emt 0:00:32]} Rh3 {[%emt 0:00:53]} 39. h5 {[%emt 0:00:18]} Kf6 {[%emt 0:00:37]} 40. Rc6+ {[%emt 0:00:00]} Ke5 {[%emt 0:00:00]} 41. Kb3 {[%emt 0:05:23]} Bb4+ {[%emt 0:17:11]} 42. c3 {[%emt 0:00:30]} Kd5 {[%emt 0:00:04]} 43. Rc8 {[%emt 0:01:30]} Bc5 {[%emt 0:01:11]} 44. Rh8 {[%emt 0:01:30]} Rxc3+ {[%emt 0:04:36]} 0-1

[Event "28th CRO-chT 1A-Men 2019"]
[Site "Mali Losinj"]
[Date "2019.10.06"]
[Round "9.21"]
[White "Markus, Robert"]
[Black "Muse, Drazen"]
[Result "1-0"]
[ECO "E62"]
[WhiteElo "2599"]
[BlackElo "2357"]
[Annotator "ChessBase"]
[PlyCount "53"]
[EventDate "2019.09.28"]
[EventType "team-tourn"]
[EventCountry "CRO"]
[SourceTitle "playchess.com"]
[Source "ChessBase"]
[SourceQuality "1"]
[TimeControl "40/5400+30:1800+30"]

1. d4 {[%emt 0:00:30]} Nf6 {[%emt 0:00:30]} 2. c4 {[%emt 0:00:00]} g6 {[%emt 0:00:00]} 3. g3 {[%emt 0:00:00]} Bg7 {[%emt 0:00:00]} 4. Bg2 {[%emt 0:00:30]} O-O {[%emt 0:00:00]} 5. Nf3 {[%emt 0:03:30]} d6 {[%emt 0:00:00]} 6. O-O {[%emt 0:00:00]} c6 {[%emt 0:00:30]} 7. Nc3 {[%emt 0:00:00]} Qa5 {[%emt 0:00:00]} 8. e4 {[%emt 0:05:30]} Bg4 {[%emt 0:02:00]} 9. h3 {[%emt 0:03:30]} Bxf3 {[%emt 0:00:30]} 10. Bxf3 {[%emt 0:00:30]} Nfd7 {[%emt 0:00:30]} 11. Be3 {[%emt 0:06:30]} Na6 {[%emt 0:00:30]} 12. Rc1 {[%emt 0:03:30]} c5 {[%emt 0:16:30]} 13. dxc5 {[%emt 0:07:30]} Ndxc5 {[%emt 0:00:00]} 14. a3 {[%emt 0:04:30]} Ne6 {[%emt 0:02:00]} 15. Be2 {[%emt 0:06:30]} Nb8 {[%emt 0:05:30]} 16. Qb3 {[%emt 0:06:30]} Qc7 {[%emt 0:06:30]} 17. Nd5 {[%emt 0:06:30]} Qd7 {[%emt 0:00:30]} 18. c5 {[%emt 0:00:30]} dxc5 {[%emt 0:09:30]} 19. Rfd1 {[%emt 0:00:30]} Bd4 {[%emt 0:00:30]} 20. Bxd4 {[%emt 0:01:30]} cxd4 {[%emt 0:00:30]} 21. Nc7 {[%emt 0:06:30]} Nc6 {[%emt 0:03:30]} 22. Nxa8 {[%emt 0:00:30]} Rxa8 {[%emt 0:00:00]} 23. Qd5 {[%emt 0:04:30]} Rd8 {[%emt 0:02:00]} 24. Qxd7 {[%emt 0:00:30]} Rxd7 {[%emt 0:00:00]} 25. Bb5 {[%emt 0:03:30]} Ng5 {[%emt 0:06:00]} 26. f4 {[%emt 0:05:30]} Nxe4 {[%emt 0:00:30]} 27. Rxc6 {[%emt 0:00:00]} 1-0